fUST/lending_fUST_20260528
["ID","MTS","AMOUNT","RATE_DAILY","PERIOD"]
[423182781,1779910251000,-500.0,0.0001041,2]
[423182802,1779910251000,-500.0,0.0001041,2]
[423182792,1779910251000,-1321.14,0.0001041,2]
[423182811,1779910251000,-632.03,0.0001041,2]
[423182831,1779910251000,-500.0,0.0001041,2]
[423182804,1779910251000,-500.0,0.0001041,2]
[423182807,1779910251000,-500.0,0.0001041,2]
[423182821,1779910251000,-2006.93,0.0001041,2]
[423182809,1779910251000,-450.16237977,0.0001041,2]
[423182815,1779910251000,-549.16,0.0001041,2]
[423182817,1779910251000,-568.22,0.0001041,2]
[423182823,1779910251000,-1517.97,0.0001041,2]
[423182819,1779910251000,-672.48,0.0001041,2]
[423182838,1779910251000,-500.0,0.0001041,2]
[423182841,1779910251000,-9305.13,0.0001041,2]
[423182839,1779910251000,-595.2,0.0001041,2]
[423182835,1779910251000,-501.53,0.0001041,2]
[423182825,1779910251000,-500.0,0.0001041,2]
[423182786,1779910251000,-1125.3,0.0001041,2]
[423182813,1779910251000,-500.0,0.0001041,2]
[423182775,1779910251000,-500.0,0.0001041,2]
[423182744,1779910251000,-500.0,0.00010136,2]
[423182771,1779910251000,-431.85,0.0001041,2]
[423182827,1779910251000,-1170.47,0.0001041,2]
[423182711,1779910251000,-568.22,0.00010136,2]
[423182717,1779910251000,-1517.97,0.00010136,2]
[423182715,1779910251000,-2006.93,0.00010136,2]
[423182714,1779910251000,-672.48,0.00010136,2]
[423182719,1779910251000,-474.24,0.00010136,2]
[423182721,1779910251000,-500.0,0.00010136,2]
[423182723,1779910251000,-1170.47,0.00010136,2]
[423182736,1779910251000,-9305.13,0.00010136,2]
[423182738,1779910251000,-500.0,0.00010136,2]
[423182732,1779910251000,-500.0,0.00010136,2]
[423182727,1779910251000,-500.0,0.00010136,2]
[423182725,1779910251000,-1156.29,0.00010136,2]
[423182740,1779910251000,-500.0,0.00010136,2]
[423182742,1779910251000,-500.0,0.00010136,2]
[423182729,1779910251000,-540.46,0.00010136,2]
[423182730,1779910251000,-501.53,0.00010136,2]
[423182746,1779910251000,-1727.35,0.00010136,2]
[423182759,1779910251000,-864.0,0.0001023,2]
[423182752,1779910251000,-500.0,0.00010136,2]
[423182761,1779910251000,-500.0,0.0001041,2]
[423182748,1779910251000,-500.0,0.00010136,2]
[423182750,1779910251000,-711.93,0.00010136,2]
[423182763,1779910251000,-317.48,0.0001041,2]
[423182755,1779910251000,-583.62,0.00010136,2]
[423182765,1779910251000,-500.0,0.0001041,2]
[423182767,1779910251000,-824.5744,0.0001041,2]
[423182757,1779910251000,-417.80498801,0.00010178,2]
[423182769,1779910251000,-500.0,0.0001041,2]
[423182773,1779910251000,-500.0,0.0001041,2]
[423182843,1779910251000,-500.0,0.0001041,2]
[423182734,1779910251000,-500.0,0.00010136,2]
[423182847,1779910251000,-500.0,0.0001041,2]
[423182918,1779910251000,-500.0,0.00010684,2]
[423182924,1779910251000,-500.0,0.00010684,2]
[423182922,1779910251000,-632.03,0.00010684,2]
[423182928,1779910251000,-672.48,0.00010684,2]
[423182909,1779910251000,-764.39,0.00010684,2]
[423182915,1779910251000,-658.23,0.00010684,2]
[423182907,1779910251000,-1321.14,0.00010684,2]
[423182913,1779910251000,-1576.23,0.00010684,2]
[423182911,1779910251000,-536.5,0.00010684,2]
[423182926,1779910251000,-568.22,0.00010684,2]
[423182941,1779910251000,-540.46,0.00010684,2]
[423182946,1779910251000,-9305.13,0.00010684,2]
[423182944,1779910251000,-500.0,0.00010684,2]
[423182943,1779910251000,-501.53,0.00010684,2]
[423182921,1779910251000,-500.0,0.00010684,2]
[423182930,1779910251000,-2006.93,0.00010684,2]
[423182932,1779910251000,-1517.97,0.00010684,2]
[423182949,1779910251000,-500.0,0.00010684,2]
[423182950,1779910251000,-500.0,0.00010684,2]
[423182952,1779910251000,-500.0,0.00010684,2]
[423182939,1779910251000,-500.0,0.00010684,2]
[423182961,1779910251000,-583.62,0.00010684,2]
[423182934,1779910251000,-500.0,0.00010684,2]
[423182938,1779910251000,-1156.29,0.00010684,2]
[423182954,1779910251000,-1727.35,0.00010684,2]
[423182936,1779910251000,-1170.47,0.00010684,2]
[423182956,1779910251000,-500.0,0.00010684,2]
[423182959,1779910251000,-500.0,0.00010684,2]
[423182963,1779910251000,-716.15257786,0.000107,2]
[423182833,1779910251000,-540.46,0.0001041,2]
[423182947,1779910251000,-500.0,0.00010684,2]
[423182905,1779910251000,-624.65,0.00010684,2]
[423182958,1779910251000,-711.93,0.00010684,2]
[423182904,1779910251000,-500.0,0.00010684,2]
[423182916,1779910251000,-500.0,0.00010684,2]
[423182829,1779910251000,-1156.29,0.0001041,2]
[423182850,1779910251000,-1727.35,0.0001041,2]
[423182848,1779910251000,-500.0,0.0001041,2]
[423182852,1779910251000,-500.0,0.0001041,2]
[423182854,1779910251000,-711.93,0.0001041,2]
[423182856,1779910251000,-500.0,0.0001041,2]
[423182858,1779910251000,-583.62,0.0001041,2]
[423182866,1779910251000,-160.0,0.00010455,2]
[423182864,1779910251000,-160.0,0.00010455,2]
[423182862,1779910251000,-766.98895499,0.00010455,2]
[423182868,1779910251000,-160.0,0.00010455,2]
[423182860,1779910251000,-160.0,0.00010455,2]
[423182876,1779910251000,-716.15257786,0.000106,2]
[423182872,1779910251000,-742.65009385,0.000105,2]
[423182845,1779910251000,-500.0,0.0001041,2]
[423182870,1779910251000,-716.15257786,0.000105,2]
[423182874,1779910251000,-294.53656865,0.00010531,2]
[423182902,1779910251000,-1125.3,0.00010684,2]
[423182888,1779910251000,-266.6,0.00010684,2]
[423182900,1779910251000,-500.0,0.00010684,2]
[423182881,1779910251000,-500.0,0.00010684,2]
[423182878,1779910251000,-742.65009385,0.000106,2]
[423182884,1779910251000,-633.7679,0.00010684,2]
[423182898,1779910251000,-500.0,0.00010684,2]
[423182890,1779910251000,-500.0,0.00010684,2]
[423182882,1779910251000,-500.0,0.00010684,2]
[423182892,1779910251000,-500.0,0.00010684,2]
[423182886,1779910251000,-500.0,0.00010684,2]
[423182894,1779910251000,-500.0,0.00010684,2]
[423182896,1779910251000,-500.0,0.00010684,2]
[423183053,1779910252000,-500.0,0.00010958,2]
[423183031,1779910252000,-1156.29,0.00010958,2]
[423183027,1779910252000,-500.0,0.00010958,2]
[423183033,1779910252000,-500.0,0.00010958,2]
[423183037,1779910252000,-501.53,0.00010958,2]
[423183039,1779910252000,-500.0,0.00010958,2]
[423183045,1779910252000,-500.0,0.00010958,2]
[423183041,1779910252000,-9305.13,0.00010958,2]
[423183051,1779910252000,-1727.35,0.00010958,2]
[423183043,1779910252000,-500.0,0.00010958,2]
[423183029,1779910252000,-1170.47,0.00010958,2]
[423183035,1779910252000,-540.46,0.00010958,2]
[423183074,1779910252000,-500.0,0.00011232,2]
[423183057,1779910252000,-545.65,0.00010958,2]
[423183047,1779910252000,-500.0,0.00010958,2]
[423183049,1779910252000,-500.0,0.00010958,2]
[423183061,1779910252000,-500.0,0.00011232,2]
[423183059,1779910252000,-583.62,0.00010958,2]
[423183063,1779910252000,-500.0,0.00011232,2]
[423183072,1779910252000,-500.0,0.00011232,2]
[423183076,1779910252000,-500.0,0.00011232,2]
[423183080,1779910252000,-500.0,0.00011232,2]
[423183078,1779910252000,-500.0,0.00011232,2]
[423183082,1779910252000,-500.0,0.00011232,2]
[423183023,1779910252000,-2006.93,0.00010958,2]
[423183093,1779910252000,-1321.14,0.00011232,2]
[423183055,1779910252000,-711.93,0.00010958,2]
[423183021,1779910252000,-672.48,0.00010958,2]
[423182998,1779910252000,-624.65,0.00010958,2]
[423183015,1779910252000,-632.03,0.00010958,2]
[423183095,1779910252000,-764.39,0.00011232,2]
[423182965,1779910252000,-742.65009385,0.000107,2]
[423182967,1779910252000,-716.15257786,0.000108,2]
[423182976,1779910252000,-500.0,0.00010958,2]
[423182971,1779910252000,-716.15257786,0.000109,2]
[423182972,1779910252000,-742.65009385,0.000109,2]
[423182969,1779910252000,-742.65009385,0.000108,2]
[423182980,1779910252000,-500.0,0.00010958,2]
[423182978,1779910252000,-500.0,0.00010958,2]
[423182974,1779910252000,-500.0,0.00010958,2]
[423182982,1779910252000,-175.92,0.00010958,2]
[423182984,1779910252000,-500.0,0.00010958,2]
[423182988,1779910252000,-500.0,0.00010958,2]
[423183013,1779910252000,-500.0,0.00010958,2]
[423182986,1779910252000,-500.0,0.00010958,2]
[423182990,1779910252000,-500.0,0.00010958,2]
[423182996,1779910252000,-500.0,0.00010958,2]
[423182994,1779910252000,-1125.3,0.00010958,2]
[423183009,1779910252000,-493.6,0.00010958,2]
[423183000,1779910252000,-1321.14,0.00010958,2]
[423183001,1779910252000,-764.39,0.00010958,2]
[423183003,1779910252000,-536.5,0.00010958,2]
[423183007,1779910252000,-658.23,0.00010958,2]
[423183005,1779910252000,-1576.23,0.00010958,2]
[423183011,1779910252000,-500.0,0.00010958,2]
[423183019,1779910252000,-568.22,0.00010958,2]
[423183017,1779910252000,-500.0,0.00010958,2]
[423183025,1779910252000,-1517.97,0.00010958,2]
[423182992,1779910252000,-1018.085,0.00010958,2]
[423183099,1779910252000,-1576.23,0.00011232,2]
[423183101,1779910252000,-658.23,0.00011232,2]
[423183091,1779910252000,-624.65,0.00011232,2]
[423183162,1779910252000,-500.0,0.00011506,2]
[423183172,1779910252000,-1018.085,0.00011506,2]
[423183164,1779910252000,-500.0,0.00011506,2]
[423183174,1779910252000,-1125.3,0.00011506,2]
[423183176,1779910252000,-610.55,0.00011506,2]
[423183166,1779910252000,-500.0,0.00011506,2]
[423183168,1779910252000,-500.0,0.00011506,2]
[423183170,1779910252000,-500.0,0.00011506,2]
[423183178,1779910252000,-624.65,0.00011506,2]
[423183180,1779910252000,-1321.14,0.00011506,2]
[423183183,1779910252000,-536.5,0.00011506,2]
[423183185,1779910252000,-1576.23,0.00011506,2]
[423183187,1779910252000,-658.23,0.00011506,2]
[423183189,1779910252000,-500.0,0.00011506,2]
[423183193,1779910252000,-632.03,0.00011506,2]
[423183191,1779910252000,-500.0,0.00011506,2]
[423183198,1779910252000,-672.48,0.00011506,2]
[423183182,1779910252000,-764.39,0.00011506,2]
[423183200,1779910252000,-2006.93,0.00011506,2]
[423183205,1779910252000,-1170.47,0.00011506,2]
[423183204,1779910252000,-500.0,0.00011506,2]
[423183195,1779910252000,-500.0,0.00011506,2]
[423183202,1779910252000,-1517.97,0.00011506,2]
[423183197,1779910252000,-568.22,0.00011506,2]
[423183089,1779910252000,-500.0,0.00011232,2]
[423183211,1779910252000,-540.46,0.00011506,2]
[423183209,1779910252000,-500.0,0.00011506,2]
[423183160,1779910252000,-586.36,0.00011506,2]
[423183156,1779910252000,-500.0,0.00011506,2]
[423183207,1779910252000,-1156.29,0.00011506,2]
[423183154,1779910252000,-7910.55850426,0.000115,2]
[423183158,1779910252000,-500.0,0.00011506,2]
[423183085,1779910252000,-1018.085,0.00011232,2]
[423183097,1779910252000,-536.5,0.00011232,2]
[423183105,1779910252000,-500.0,0.00011232,2]
[423183103,1779910252000,-500.0,0.00011232,2]
[423183107,1779910252000,-632.03,0.00011232,2]
[423183109,1779910252000,-500.0,0.00011232,2]
[423183112,1779910252000,-568.22,0.00011232,2]
[423183114,1779910252000,-672.48,0.00011232,2]
[423183124,1779910252000,-1156.29,0.00011232,2]
[423183128,1779910252000,-540.46,0.00011232,2]
[423183126,1779910252000,-500.0,0.00011232,2]
[423183122,1779910252000,-1170.47,0.00011232,2]
[423183116,1779910252000,-2006.93,0.00011232,2]
[423183087,1779910252000,-1125.3,0.00011232,2]
[423183120,1779910252000,-500.0,0.00011232,2]
[423183118,1779910252000,-1517.97,0.00011232,2]
[423183153,1779910252000,-1000.0,0.00011253,2]
[423183141,1779910252000,-500.0,0.00011232,2]
[423183149,1779910252000,-711.93,0.00011232,2]
[423183151,1779910252000,-583.62,0.00011232,2]
[423183139,1779910252000,-500.0,0.00011232,2]
[423183147,1779910252000,-500.0,0.00011232,2]
[423183130,1779910252000,-501.53,0.00011232,2]
[423183137,1779910252000,-500.0,0.00011232,2]
[423183143,1779910252000,-500.0,0.00011232,2]
[423183135,1779910252000,-9305.13,0.00011232,2]
[423183145,1779910252000,-1727.35,0.00011232,2]
[423183132,1779910252000,-500.0,0.00011232,2]
[423183256,1779910253000,-624.65,0.0001178,2]
[423183292,1779910253000,-501.53,0.0001178,2]
[423183262,1779910253000,-536.5,0.0001178,2]
[423183260,1779910253000,-764.39,0.0001178,2]
[423183275,1779910253000,-568.22,0.0001178,2]
[423183276,1779910253000,-672.48,0.0001178,2]
[423183271,1779910253000,-632.03,0.0001178,2]
[423183267,1779910253000,-500.0,0.0001178,2]
[423183273,1779910253000,-500.0,0.0001178,2]
[423183282,1779910253000,-500.0,0.0001178,2]
[423183266,1779910253000,-658.23,0.0001178,2]
[423183278,1779910253000,-2006.93,0.0001178,2]
[423183290,1779910253000,-540.46,0.0001178,2]
[423183296,1779910253000,-9305.13,0.0001178,2]
[423183294,1779910253000,-500.0,0.0001178,2]
[423183302,1779910253000,-500.0,0.0001178,2]
[423183286,1779910253000,-1156.29,0.0001178,2]
[423183284,1779910253000,-1170.47,0.0001178,2]
[423183288,1779910253000,-500.0,0.0001178,2]
[423183298,1779910253000,-500.0,0.0001178,2]
[423183300,1779910253000,-500.0,0.0001178,2]
[423183314,1779910253000,-150.342,0.00011924,2]
[423183316,1779910253000,-151.0,0.00011967,2]
[423183258,1779910253000,-1321.14,0.0001178,2]
[423183280,1779910253000,-1517.97,0.0001178,2]
[423183269,1779910253000,-500.0,0.0001178,2]
[423183234,1779910253000,-742.0,0.00011583,2]
[423183264,1779910253000,-1576.23,0.0001178,2]
[423183312,1779910253000,-150.846,0.00011924,2]
[423183217,1779910253000,-9305.13,0.00011506,2]
[423183219,1779910253000,-500.0,0.00011506,2]
[423183220,1779910253000,-500.0,0.00011506,2]
[423183222,1779910253000,-500.0,0.00011506,2]
[423183227,1779910253000,-500.0,0.00011506,2]
[423183213,1779910253000,-501.53,0.00011506,2]
[423183224,1779910253000,-500.0,0.00011506,2]
[423183229,1779910253000,-583.62,0.00011506,2]
[423183215,1779910253000,-500.0,0.00011506,2]
[423183228,1779910253000,-711.93,0.00011506,2]
[423183226,1779910253000,-1727.35,0.00011506,2]
[423183230,1779910253000,-244.0,0.00011507,3]
[423183232,1779910253000,-445.384,0.00011583,2]
[423183231,1779910253000,-2204.0,0.00011583,2]
[423183237,1779910253000,-336.1230398,0.00011594,2]
[423183235,1779910253000,-185.0,0.00011583,2]
[423183239,1779910253000,-199.2611,0.0001178,2]
[423183241,1779910253000,-500.0,0.0001178,2]
[423183246,1779910253000,-500.0,0.0001178,2]
[423183242,1779910253000,-500.0,0.0001178,2]
[423183247,1779910253000,-500.0,0.0001178,2]
[423183251,1779910253000,-500.0,0.0001178,2]
[423183249,1779910253000,-500.0,0.0001178,2]
[423183253,1779910253000,-1018.085,0.0001178,2]
[423183254,1779910253000,-1125.3,0.0001178,2]
[423183303,1779910253000,-500.0,0.0001178,2]
[423183244,1779910253000,-500.0,0.0001178,2]
[423183309,1779910253000,-711.93,0.0001178,2]
[423183357,1779910253000,-536.5,0.00012054,2]
[423183375,1779910253000,-568.22,0.00012054,2]
[423183389,1779910253000,-623.61210271,0.00012054,2]
[423183383,1779910253000,-2006.93,0.00012054,2]
[423183438,1779910253000,-500.0,0.00012328,2]
[423183379,1779910253000,-672.48,0.00012054,2]
[423183395,1779910253000,-1156.29,0.00012054,2]
[423183392,1779910253000,-1170.47,0.00012054,2]
[423183386,1779910253000,-1517.97,0.00012054,2]
[423183400,1779910253000,-540.46,0.00012054,2]
[423183405,1779910253000,-585.04,0.00012054,2]
[423183403,1779910253000,-501.53,0.00012054,2]
[423183410,1779910253000,-500.0,0.00012054,2]
[423183397,1779910253000,-500.0,0.00012054,2]
[423183407,1779910253000,-9305.13,0.00012054,2]
[423183413,1779910253000,-500.0,0.00012054,2]
[423183415,1779910253000,-500.0,0.00012054,2]
[423183420,1779910253000,-1727.35,0.00012054,2]
[423183422,1779910253000,-500.0,0.00012054,2]
[423183418,1779910253000,-500.0,0.00012054,2]
[423183427,1779910253000,-583.62,0.00012054,2]
[423183425,1779910253000,-711.93,0.00012054,2]
[423183435,1779910253000,-500.0,0.00012328,2]
[423183433,1779910253000,-562.02,0.00012328,2]
[423183305,1779910253000,-1727.35,0.0001178,2]
[423183372,1779910253000,-500.0,0.00012054,2]
[423183361,1779910253000,-658.23,0.00012054,2]
[423183430,1779910253000,-1669.54873208,0.00012284,2]
[423183367,1779910253000,-632.03,0.00012054,2]
[423183359,1779910253000,-1576.23,0.00012054,2]
[423183307,1779910253000,-500.0,0.0001178,2]
[423183311,1779910253000,-583.62,0.0001178,2]
[423183322,1779910253000,-320.2946128,0.00011967,2]
[423183318,1779910253000,-500.0,0.00011967,2]
[423183324,1779910253000,-162.380719,0.00011967,2]
[423183326,1779910253000,-537.6845,0.00011967,2]
[423183327,1779910253000,-683.27440197,0.00011973,2]
[423183329,1779910253000,-150.92,0.00012,2]
[423183331,1779910253000,-150.92,0.00012,2]
[423183333,1779910253000,-150.92,0.00012,2]
[423183336,1779910253000,-500.0,0.00012054,2]
[423183320,1779910253000,-195.3431892,0.00011967,2]
[423183335,1779910253000,-500.0,0.00012054,2]
[423183338,1779910253000,-453.65,0.00012054,2]
[423183365,1779910253000,-500.0,0.00012054,2]
[423183353,1779910253000,-1321.14,0.00012054,2]
[423183352,1779910253000,-624.65,0.00012054,2]
[423183350,1779910253000,-1125.3,0.00012054,2]
[423183355,1779910253000,-764.39,0.00012054,2]
[423183346,1779910253000,-500.0,0.00012054,2]
[423183344,1779910253000,-535.1,0.00012054,2]
[423183340,1779910253000,-500.0,0.00012054,2]
[423183348,1779910253000,-1018.085,0.00012054,2]
[423183342,1779910253000,-197.95,0.00012054,2]
[423183363,1779910253000,-435.96,0.00012054,2]
[423183510,1779910254000,-1727.35,0.00012328,2]
[423183508,1779910254000,-500.0,0.00012328,2]
[423183540,1779910254000,-1321.14,0.00012602,2]
[423183513,1779910254000,-406.92,0.00012328,2]
[423183517,1779910254000,-583.62,0.00012328,2]
[423183515,1779910254000,-711.93,0.00012328,2]
[423183525,1779910254000,-557.5788265,0.00012515,2]
[423183529,1779910254000,-500.0,0.00012602,2]
[423183523,1779910254000,-500.0,0.00012515,2]
[423183527,1779910254000,-333.51934979,0.00012531,2]
[423183537,1779910254000,-1125.3,0.00012602,2]
[423183531,1779910254000,-500.0,0.00012602,2]
[423183521,1779910254000,-244.0,0.00012379,2]
[423183533,1779910254000,-500.0,0.00012602,2]
[423183535,1779910254000,-1018.085,0.00012602,2]
[423183538,1779910254000,-624.65,0.00012602,2]
[423183555,1779910254000,-568.22,0.00012602,2]
[423183557,1779910254000,-672.48,0.00012602,2]
[423183544,1779910254000,-536.5,0.00012602,2]
[423183519,1779910254000,-1000.0,0.00012379,2]
[423183546,1779910254000,-1576.23,0.00012602,2]
[423183542,1779910254000,-764.39,0.00012602,2]
[423183506,1779910254000,-500.0,0.00012328,2]
[423183473,1779910254000,-568.22,0.00012328,2]
[423183504,1779910254000,-500.0,0.00012328,2]
[423183559,1779910254000,-2006.93,0.00012602,2]
[423183440,1779910254000,-500.0,0.00012328,2]
[423183443,1779910254000,-1018.085,0.00012328,2]
[423183449,1779910254000,-1321.14,0.00012328,2]
[423183445,1779910254000,-1125.3,0.00012328,2]
[423183454,1779910254000,-536.5,0.00012328,2]
[423183447,1779910254000,-624.65,0.00012328,2]
[423183452,1779910254000,-764.39,0.00012328,2]
[423183462,1779910254000,-658.23,0.00012328,2]
[423183465,1779910254000,-500.0,0.00012328,2]
[423183502,1779910254000,-500.0,0.00012328,2]
[423183459,1779910254000,-1576.23,0.00012328,2]
[423183471,1779910254000,-500.0,0.00012328,2]
[423183488,1779910254000,-1156.29,0.00012328,2]
[423183491,1779910254000,-500.0,0.00012328,2]
[423183477,1779910254000,-672.48,0.00012328,2]
[423183496,1779910254000,-501.53,0.00012328,2]
[423183494,1779910254000,-540.46,0.00012328,2]
[423183480,1779910254000,-2006.93,0.00012328,2]
[423183486,1779910254000,-1170.47,0.00012328,2]
[423183482,1779910254000,-1517.97,0.00012328,2]
[423183499,1779910254000,-9305.13,0.00012328,2]
[423183468,1779910254000,-632.03,0.00012328,2]
[423183561,1779910254000,-1517.97,0.00012602,2]
[423183563,1779910254000,-1170.47,0.00012602,2]
[423183554,1779910254000,-500.0,0.00012602,2]
[423183613,1779910254000,-764.39,0.00012876,2]
[423183615,1779910254000,-536.5,0.00012876,2]
[423183617,1779910254000,-1576.23,0.00012876,2]
[423183623,1779910254000,-632.03,0.00012876,2]
[423183638,1779910254000,-1156.29,0.00012876,2]
[423183627,1779910254000,-568.22,0.00012876,2]
[423183629,1779910254000,-672.48,0.00012876,2]
[423183631,1779910254000,-2006.93,0.00012876,2]
[423183625,1779910254000,-500.0,0.00012876,2]
[423183620,1779910254000,-658.23,0.00012876,2]
[423183621,1779910254000,-500.0,0.00012876,2]
[423183633,1779910254000,-1517.97,0.00012876,2]
[423183643,1779910254000,-501.53,0.00012876,2]
[423183647,1779910254000,-500.0,0.00012876,2]
[423183641,1779910254000,-540.46,0.00012876,2]
[423183645,1779910254000,-9305.13,0.00012876,2]
[423183649,1779910254000,-500.0,0.00012876,2]
[423183658,1779910254000,-583.62,0.00012876,2]
[423183651,1779910254000,-500.0,0.00012876,2]
[423183640,1779910254000,-500.0,0.00012876,2]
[423183653,1779910254000,-1727.35,0.00012876,2]
[423183656,1779910254000,-711.93,0.00012876,2]
[423183548,1779910254000,-658.23,0.00012602,2]
[423183609,1779910254000,-624.65,0.00012876,2]
[423183605,1779910254000,-1018.085,0.00012876,2]
[423183636,1779910254000,-1170.47,0.00012876,2]
[423183611,1779910254000,-1321.14,0.00012876,2]
[423183603,1779910254000,-355.6,0.00012876,2]
[423183550,1779910254000,-500.0,0.00012602,2]
[423183565,1779910254000,-1156.29,0.00012602,2]
[423183571,1779910254000,-501.53,0.00012602,2]
[423183569,1779910254000,-540.46,0.00012602,2]
[423183567,1779910254000,-500.0,0.00012602,2]
[423183573,1779910254000,-9305.13,0.00012602,2]
[423183575,1779910254000,-500.0,0.00012602,2]
[423183579,1779910254000,-243.92,0.00012602,2]
[423183577,1779910254000,-500.0,0.00012602,2]
[423183581,1779910254000,-500.0,0.00012602,2]
[423183552,1779910254000,-632.03,0.00012602,2]
[423183585,1779910254000,-711.93,0.00012602,2]
[423183583,1779910254000,-1727.35,0.00012602,2]
[423183587,1779910254000,-583.62,0.00012602,2]
[423183589,1779910254000,-940.95704217,0.00012603,2]
[423183591,1779910254000,-3760.06434052,0.00012603,2]
[423183593,1779910254000,-525.88469657,0.00012603,2]
[423183595,1779910254000,-724.96,0.00012603,2]
[423183597,1779910254000,-150.308,0.00012603,2]
[423183599,1779910254000,-580.32,0.00012876,2]
[423183601,1779910254000,-500.0,0.00012876,2]
[423183607,1779910254000,-1125.3,0.00012876,2]
[423183741,1779910255000,-632.03,0.00013424,2]
[423183737,1779910255000,-658.23,0.00013424,2]
[423183739,1779910255000,-234.05,0.00013424,2]
[423183733,1779910255000,-536.5,0.00013424,2]
[423183732,1779910255000,-764.39,0.00013424,2]
[423183712,1779910255000,-500.0,0.0001315,2]
[423183730,1779910255000,-1321.14,0.00013424,2]
[423183728,1779910255000,-624.65,0.00013424,2]
[423183723,1779910255000,-546.9152,0.00013424,2]
[423183743,1779910255000,-268.6,0.00013424,2]
[423183718,1779910255000,-583.62,0.0001315,2]
[423183725,1779910255000,-1125.3,0.00013424,2]
[423183744,1779910255000,-568.22,0.00013424,2]
[423183750,1779910255000,-1517.97,0.00013424,2]
[423183754,1779910255000,-1156.29,0.00013424,2]
[423183756,1779910255000,-540.46,0.00013424,2]
[423183752,1779910255000,-1170.47,0.00013424,2]
[423183721,1779910255000,-162.380719,0.00013336,2]
[423183748,1779910255000,-2006.93,0.00013424,2]
[423183746,1779910255000,-672.48,0.00013424,2]
[423183760,1779910255000,-9305.13,0.00013424,2]
[423183762,1779910255000,-500.0,0.00013424,2]
[423183778,1779910255000,-492.0,0.00013616,2]
[423183759,1779910255000,-501.53,0.00013424,2]
[423183764,1779910255000,-500.0,0.00013424,2]
[423183768,1779910255000,-1727.35,0.00013424,2]
[423183735,1779910255000,-1576.23,0.00013424,2]
[423183714,1779910255000,-1727.35,0.0001315,2]
[423183674,1779910255000,-1321.14,0.0001315,2]
[423183716,1779910255000,-711.93,0.0001315,2]
[423183770,1779910255000,-711.93,0.00013424,2]
[423183660,1779910255000,-500.0,0.00013063,2]
[423183662,1779910255000,-517.7901735,0.00013063,2]
[423183666,1779910255000,-454.15,0.0001315,2]
[423183664,1779910255000,-182.6965395,0.00013123,7]
[423183679,1779910255000,-1576.23,0.0001315,2]
[423183675,1779910255000,-764.39,0.0001315,2]
[423183670,1779910255000,-1125.3,0.0001315,2]
[423183672,1779910255000,-624.65,0.0001315,2]
[423183681,1779910255000,-658.23,0.0001315,2]
[423183668,1779910255000,-1018.085,0.0001315,2]
[423183677,1779910255000,-536.5,0.0001315,2]
[423183684,1779910255000,-632.03,0.0001315,2]
[423183682,1779910255000,-500.0,0.0001315,2]